[Event "Titled Tuesday Blitz May 23 Early 2023"]
[White "Maltsevskaya, Aleksandra"]
[Black "Zacurdajev, Dmitry"]
[WhiteFideId "24174041"]
[BlackFideId "4196309"]
[WhiteElo "2302"]
[BlackElo "2240"]
[Result "1-0"]
[Round "05"]
[TimeControl "180+2"]
[Date "2023.05.23"]
[WhiteClock "0:00:28"]
[BlackClock "0:00:00"]

1. e4 {[%clk 0:02:09]}  c6 {[%clk 0:02:55]} 2. Nc3 {[%clk 0:02:08]}  d5 {[%clk 0:02:56]} 3. Nf3 {[%clk 0:02:08]}  Bg4 {[%clk 0:02:56]} 4. h3 {[%clk 0:02:08]}  Bxf3 {[%clk 0:02:57]} 5. Qxf3 {[%clk 0:02:09]}  e6 {[%clk 0:02:56]} 6. g3 {[%clk 0:02:09]}  Nf6 {[%clk 0:02:57]} 7. Bg2 {[%clk 0:02:09]}  Be7 {[%clk 0:02:57]} 8. O-O {[%clk 0:02:09]}  Nbd7 {[%clk 0:02:54]} 9. d4 {[%clk 0:02:07]}  dxe4 {[%clk 0:02:53]} 10. Nxe4 {[%clk 0:02:08]}  Nxe4 {[%clk 0:02:54]} 11. Qxe4 {[%clk 0:02:09]}  Nf6 {[%clk 0:02:55]} 12. Qe3 {[%clk 0:02:09]}  O-O {[%clk 0:02:55]} 13. c4 {[%clk 0:02:09]}  Qb6 {[%clk 0:02:42]} 14. b3 {[%clk 0:02:07]}  a5 {[%clk 0:02:42]} 15. Rd1 {[%clk 0:02:04]}  a4 {[%clk 0:02:41]} 16. Bd2 {[%clk 0:02:03]}  Rfd8 {[%clk 0:02:35]} 17. Bc3 {[%clk 0:02:00]}  axb3 {[%clk 0:02:34]} 18. Rdb1 {[%clk 0:01:54]}  Ra3 {[%clk 0:01:42]} 19. axb3 {[%clk 0:01:48]}  Rxb3 {[%clk 0:01:32]} 20. Rxb3 {[%clk 0:01:48]}  Qxb3 {[%clk 0:01:32]} 21. Qd3 {[%clk 0:01:49]}  Bb4 {[%clk 0:01:26]} 22. Rc1 {[%clk 0:01:36]}  e5 {[%clk 0:01:12]} 23. d5 {[%clk 0:01:28]}  cxd5 {[%clk 0:01:05]} 24. cxd5 {[%clk 0:01:29]}  Bxc3 {[%clk 0:00:33]} 25. Rxc3 {[%clk 0:01:28]}  Qb2 {[%clk 0:00:25]} 26. Rb3 {[%clk 0:01:15]}  Qc1+ {[%clk 0:00:18]} 27. Kh2 {[%clk 0:01:15]}  Qc7 {[%clk 0:00:14]} 28. Qb5 {[%clk 0:01:08]}  h6 {[%clk 0:00:13]} 29. Qxb7 {[%clk 0:01:06]}  Qxb7 {[%clk 0:00:14]} 30. Rxb7 {[%clk 0:01:06]}  Nxd5 {[%clk 0:00:15]} 31. Rb5 {[%clk 0:01:07]}  Nf6 {[%clk 0:00:13]} 32. Rxe5 {[%clk 0:01:08]}  Re8 {[%clk 0:00:13]} 33. Rc5 {[%clk 0:01:08]}  Re2 {[%clk 0:00:13]} 34. f4 {[%clk 0:01:02]}  g6 {[%clk 0:00:06]} 35. Rc4 {[%clk 0:01:01]}  Kg7 {[%clk 0:00:06]} 36. g4 {[%clk 0:01:02]}  Ra2 {[%clk 0:00:05]} 37. Kg3 {[%clk 0:01:02]}  h5 {[%clk 0:00:05]} 38. g5 {[%clk 0:01:01]}  Ra3+ {[%clk 0:00:04]} 39. Bf3 {[%clk 0:01:01]}  Nd5 {[%clk 0:00:03]} 40. Kf2 {[%clk 0:00:45]}  Ne3 {[%clk 0:00:03]} 41. Rc7 {[%clk 0:00:43]}  Nf5 {[%clk 0:00:03]} 42. Bd5 {[%clk 0:00:43]}  Rxh3 {[%clk 0:00:01]} 43. Rxf7+ {[%clk 0:00:42]}  Kh8 {[%clk 0:00:00]} 44. Rf6 {[%clk 0:00:28]} 1-0


[Site "https://www.chess.com"]

[Event "Titled Tuesday Blitz May 23 Early 2023"]
[White "Korchmar, Vasiliy"]
[Black "Vovk, Orest"]
[WhiteFideId "24131750"]
[BlackFideId "14113490"]
[WhiteElo "2370"]
[BlackElo "2215"]
[Result "1-0"]
[Round "05"]
[TimeControl "180+2"]
[Date "2023.05.23"]
[WhiteClock "0:01:14"]
[BlackClock "0:00:01"]

1. d4 {[%clk 0:02:53]}  h6 {[%clk 0:02:28]} 2. e4 {[%clk 0:02:52]}  g5 {[%clk 0:02:20]} 3. Bd3 {[%clk 0:02:50]}  Bg7 {[%clk 0:02:14]} 4. Ne2 {[%clk 0:02:50]}  c5 {[%clk 0:02:11]} 5. c3 {[%clk 0:02:47]}  Nc6 {[%clk 0:01:31]} 6. Be3 {[%clk 0:02:47]}  Qb6 {[%clk 0:01:30]} 7. Na3 {[%clk 0:02:38]}  cxd4 {[%clk 0:01:15]} 8. Nc4 {[%clk 0:02:38]}  dxe3 {[%clk 0:01:13]} 9. Nxb6 {[%clk 0:02:35]}  exf2+ {[%clk 0:01:13]} 10. Kxf2 {[%clk 0:02:36]}  axb6 {[%clk 0:01:13]} 11. Ng3 {[%clk 0:02:32]}  d6 {[%clk 0:01:09]} 12. Nf5 {[%clk 0:02:22]}  Be5 {[%clk 0:00:59]} 13. h4 {[%clk 0:02:22]}  g4 {[%clk 0:00:46]} 14. Qxg4 {[%clk 0:02:18]}  Nf6 {[%clk 0:00:46]} 15. Qf3 {[%clk 0:01:57]}  h5 {[%clk 0:00:42]} 16. Rhf1 {[%clk 0:01:49]}  Ng4+ {[%clk 0:00:39]} 17. Kg1 {[%clk 0:01:49]}  Be6 {[%clk 0:00:29]} 18. Bb5 {[%clk 0:01:33]}  Nh2 {[%clk 0:00:20]} 19. Qf2 {[%clk 0:01:33]}  Nxf1 {[%clk 0:00:19]} 20. Qxb6 {[%clk 0:01:31]}  Kf8 {[%clk 0:00:11]} 21. Rxf1 {[%clk 0:01:23]}  Nd8 {[%clk 0:00:05]} 22. Nd4 {[%clk 0:01:19]}  Bxa2 {[%clk 0:00:04]} 23. b3 {[%clk 0:01:17]}  Rg8 {[%clk 0:00:03]} 24. Qxd8+ {[%clk 0:01:13]}  Rxd8 {[%clk 0:00:01]} 25. Ne6# {[%clk 0:01:14]} 1-0


[Site "https://www.chess.com"]

[Event "Titled Tuesday Blitz May 23 Early 2023"]
[White "Theytookourjobs"]
[Black "bubeliang"]
[WhiteElo "2351"]
[BlackElo "2602"]
[Result "0-1"]
[Round "05"]
[TimeControl "180+2"]
[Date "2023.05.23"]
[WhiteClock "0:00:00"]
[BlackClock "0:00:03"]

1. d4 {[%clk 0:02:47]}  Nf6 {[%clk 0:02:57]} 2. Bf4 {[%clk 0:02:48]}  d5 {[%clk 0:02:56]} 3. e3 {[%clk 0:02:45]}  c5 {[%clk 0:02:56]} 4. Nc3 {[%clk 0:02:46]}  cxd4 {[%clk 0:02:55]} 5. exd4 {[%clk 0:02:44]}  a6 {[%clk 0:02:55]} 6. Nf3 {[%clk 0:02:44]}  Nc6 {[%clk 0:02:54]} 7. h3 {[%clk 0:02:42]}  e6 {[%clk 0:02:52]} 8. Bd3 {[%clk 0:02:42]}  Bd6 {[%clk 0:02:43]} 9. Ne2 {[%clk 0:02:33]}  Qc7 {[%clk 0:02:40]} 10. Bxd6 {[%clk 0:02:27]}  Qxd6 {[%clk 0:02:41]} 11. O-O {[%clk 0:02:23]}  O-O {[%clk 0:02:36]} 12. a4 {[%clk 0:02:10]}  Bd7 {[%clk 0:02:19]} 13. c3 {[%clk 0:02:08]}  Rfe8 {[%clk 0:02:17]} 14. Re1 {[%clk 0:01:27]}  Rac8 {[%clk 0:02:08]} 15. Qd2 {[%clk 0:01:26]}  Ne4 {[%clk 0:02:03]} 16. Qf4 {[%clk 0:01:22]}  Qxf4 {[%clk 0:01:57]} 17. Nxf4 {[%clk 0:01:23]}  Nd6 {[%clk 0:01:56]} 18. Ne5 {[%clk 0:01:09]}  Nxe5 {[%clk 0:01:49]} 19. Rxe5 {[%clk 0:01:10]}  Nc4 {[%clk 0:01:47]} 20. Bxc4 {[%clk 0:01:10]}  Rxc4 {[%clk 0:01:47]} 21. a5 {[%clk 0:01:04]}  f6 {[%clk 0:01:46]} 22. Re3 {[%clk 0:00:57]}  Kf7 {[%clk 0:01:33]} 23. Nd3 {[%clk 0:00:46]}  Rc7 {[%clk 0:01:24]} 24. f4 {[%clk 0:00:43]}  Bb5 {[%clk 0:01:16]} 25. Nc5 {[%clk 0:00:43]}  e5 {[%clk 0:01:16]} 26. fxe5 {[%clk 0:00:40]}  fxe5 {[%clk 0:01:16]} 27. Rf1+ {[%clk 0:00:41]}  Bxf1 {[%clk 0:01:15]} 28. Kxf1 {[%clk 0:00:36]}  e4 {[%clk 0:01:10]} 29. b4 {[%clk 0:00:33]}  Kg8 {[%clk 0:01:09]} 30. Rg3 {[%clk 0:00:32]}  Rf7+ {[%clk 0:01:06]} 31. Ke2 {[%clk 0:00:30]}  g6 {[%clk 0:01:03]} 32. Rg5 {[%clk 0:00:30]}  Rd8 {[%clk 0:00:50]} 33. Ne6 {[%clk 0:00:26]}  Rd6 {[%clk 0:00:49]} 34. Nc5 {[%clk 0:00:24]}  Kg7 {[%clk 0:00:47]} 35. Ke3 {[%clk 0:00:23]}  Rf1 {[%clk 0:00:35]} 36. Nxb7 {[%clk 0:00:23]}  Rdf6 {[%clk 0:00:29]} 37. Rxd5 {[%clk 0:00:21]}  Re1+ {[%clk 0:00:29]} 38. Kd2 {[%clk 0:00:21]}  Rg1 {[%clk 0:00:28]} 39. Re5 {[%clk 0:00:20]}  Rxg2+ {[%clk 0:00:27]} 40. Ke3 {[%clk 0:00:20]}  Rf3+ {[%clk 0:00:27]} 41. Kxe4 {[%clk 0:00:20]}  Rxc3 {[%clk 0:00:27]} 42. Nc5 {[%clk 0:00:20]}  Rxh3 {[%clk 0:00:26]} 43. Re7+ {[%clk 0:00:19]}  Kh6 {[%clk 0:00:25]} 44. Ra7 {[%clk 0:00:20]}  Rg4+ {[%clk 0:00:22]} 45. Kd5 {[%clk 0:00:20]}  Rh5+ {[%clk 0:00:20]} 46. Kc4 {[%clk 0:00:21]}  Rhh4 {[%clk 0:00:20]} 47. Rd7 {[%clk 0:00:21]}  Rg1 {[%clk 0:00:15]} 48. Nxa6 {[%clk 0:00:21]}  g5 {[%clk 0:00:16]} 49. Nc5 {[%clk 0:00:21]}  g4 {[%clk 0:00:15]} 50. a6 {[%clk 0:00:21]}  g3 {[%clk 0:00:15]} 51. a7 {[%clk 0:00:21]}  Ra1 {[%clk 0:00:15]} 52. Rd6+ {[%clk 0:00:21]}  Kh5 {[%clk 0:00:15]} 53. Ra6 {[%clk 0:00:22]}  Rxa6 {[%clk 0:00:13]} 54. Nxa6 {[%clk 0:00:22]}  g2 {[%clk 0:00:14]} 55. a8=Q {[%clk 0:00:23]}  g1=Q {[%clk 0:00:15]} 56. Qe8+ {[%clk 0:00:23]}  Qg6 {[%clk 0:00:14]} 57. Qe2+ {[%clk 0:00:22]}  Kh6 {[%clk 0:00:13]} 58. Qe3+ {[%clk 0:00:21]}  Qg5 {[%clk 0:00:13]} 59. Qe6+ {[%clk 0:00:19]}  Kg7 {[%clk 0:00:12]} 60. Nc5 {[%clk 0:00:17]}  Qf6 {[%clk 0:00:08]} 61. Qd7+ {[%clk 0:00:15]}  Kh6 {[%clk 0:00:07]} 62. b5 {[%clk 0:00:14]}  Rh1 {[%clk 0:00:04]} 63. b6 {[%clk 0:00:09]}  Qxb6 {[%clk 0:00:03]} 64. Qg4 {[%clk 0:00:02]}  Qg6 {[%clk 0:00:02]} 65. Qf4+ {[%clk 0:00:01]}  Qg5 {[%clk 0:00:03]} 66. Qf8+ {[%clk 0:00:01]}  Kh5 {[%clk 0:00:03]} 67. Qf3+ {[%clk 0:00:02]}  Kg6 {[%clk 0:00:02]} 68. Qxh1 {[%clk 0:00:03]}  Qd2 {[%clk 0:00:02]} 69. Qd5 {[%clk 0:00:03]}  Qa2+ {[%clk 0:00:01]} 70. Nb3 {[%clk 0:00:03]}  Qc2+ {[%clk 0:00:01]} 71. Kb4 {[%clk 0:00:04]}  Qb2 {[%clk 0:00:02]} 72. Qc6+ {[%clk 0:00:03]}  Kg5 {[%clk 0:00:02]} 73. Qc5+ {[%clk 0:00:04]}  Kg4 {[%clk 0:00:02]} 74. Qc8+ {[%clk 0:00:02]}  Kf4 {[%clk 0:00:03]} 75. Qf8+ {[%clk 0:00:02]}  Ke4 {[%clk 0:00:03]} 76. Qe7+ {[%clk 0:00:01]}  Kd3 {[%clk 0:00:03]} 77. Qxh7+ {[%clk 0:00:00]}  Ke3 {[%clk 0:00:03]} 0-1


[Site "https://www.chess.com"]

[Event "Titled Tuesday Blitz May 23 Early 2023"]
[White "Real_taiatai"]
[Black "Kozak, Adam"]
[BlackFideId "753246"]
[WhiteElo "2349"]
[BlackElo "2469"]
[Result "0-1"]
[Round "05"]
[TimeControl "180+2"]
[Date "2023.05.23"]
[WhiteClock "0:00:04"]
[BlackClock "0:00:04"]

1. f4 {[%clk 0:02:54]}  Nh6 {[%clk 0:02:59]} 2. Nf3 {[%clk 0:02:52]}  d5 {[%clk 0:02:59]} 3. e3 {[%clk 0:02:51]}  g6 {[%clk 0:02:59]} 4. d4 {[%clk 0:02:50]}  Bg7 {[%clk 0:03:00]} 5. Bd3 {[%clk 0:02:49]}  Bf5 {[%clk 0:02:59]} 6. O-O {[%clk 0:02:49]}  Bxd3 {[%clk 0:02:59]} 7. cxd3 {[%clk 0:02:48]}  c6 {[%clk 0:02:59]} 8. Nc3 {[%clk 0:02:48]}  O-O {[%clk 0:02:59]} 9. Bd2 {[%clk 0:02:42]}  Nf5 {[%clk 0:02:59]} 10. g4 {[%clk 0:02:36]}  Nd6 {[%clk 0:02:59]} 11. a4 {[%clk 0:02:34]}  a5 {[%clk 0:02:55]} 12. Qb3 {[%clk 0:02:30]}  Na6 {[%clk 0:02:49]} 13. Nd1 {[%clk 0:02:20]}  e6 {[%clk 0:02:39]} 14. Nf2 {[%clk 0:02:09]}  c5 {[%clk 0:02:32]} 15. dxc5 {[%clk 0:02:01]}  Nxc5 {[%clk 0:02:32]} 16. Qa3 {[%clk 0:02:01]}  b6 {[%clk 0:02:25]} 17. Bc3 {[%clk 0:01:50]}  Rc8 {[%clk 0:01:47]} 18. Bxg7 {[%clk 0:01:46]}  Kxg7 {[%clk 0:01:47]} 19. Rac1 {[%clk 0:01:43]}  h6 {[%clk 0:01:33]} 20. Rc2 {[%clk 0:01:27]}  f6 {[%clk 0:01:00]} 21. Rfc1 {[%clk 0:01:23]}  Qd7 {[%clk 0:01:01]} 22. b3 {[%clk 0:01:18]}  Nf7 {[%clk 0:00:55]} 23. Qb2 {[%clk 0:01:02]}  g5 {[%clk 0:00:36]} 24. h4 {[%clk 0:00:34]}  gxf4 {[%clk 0:00:33]} 25. exf4 {[%clk 0:00:32]}  Qd6 {[%clk 0:00:33]} 26. g5 {[%clk 0:00:21]}  hxg5 {[%clk 0:00:31]} 27. hxg5 {[%clk 0:00:20]}  Qxf4 {[%clk 0:00:08]} 28. Qxf6+ {[%clk 0:00:18]}  Qxf6 {[%clk 0:00:08]} 29. gxf6+ {[%clk 0:00:19]}  Kxf6 {[%clk 0:00:09]} 30. d4 {[%clk 0:00:19]}  Rg8+ {[%clk 0:00:10]} 31. Kf1 {[%clk 0:00:18]}  Rg3 {[%clk 0:00:10]} 32. Nh2 {[%clk 0:00:14]}  Rh8 {[%clk 0:00:03]} 33. Nhg4+ {[%clk 0:00:14]}  Kg5 {[%clk 0:00:04]} 34. dxc5 {[%clk 0:00:14]}  bxc5 {[%clk 0:00:04]} 35. Rxc5 {[%clk 0:00:14]}  Rxg4 {[%clk 0:00:04]} 36. Nxg4 {[%clk 0:00:14]}  Kxg4 {[%clk 0:00:05]} 37. Rxa5 {[%clk 0:00:13]}  Rh1+ {[%clk 0:00:04]} 38. Kg2 {[%clk 0:00:13]}  Rxc1 {[%clk 0:00:05]} 39. Ra7 {[%clk 0:00:13]}  Rc2+ {[%clk 0:00:06]} 40. Kf1 {[%clk 0:00:13]}  Ng5 {[%clk 0:00:06]} 41. Ke1 {[%clk 0:00:13]}  d4 {[%clk 0:00:05]} 42. Rd7 {[%clk 0:00:12]}  e5 {[%clk 0:00:05]} 43. a5 {[%clk 0:00:12]}  Kf3 {[%clk 0:00:05]} 44. a6 {[%clk 0:00:12]}  Ke3 {[%clk 0:00:05]} 45. Kd1 {[%clk 0:00:13]}  Ra2 {[%clk 0:00:04]} 46. a7 {[%clk 0:00:13]}  Ne4 {[%clk 0:00:04]} 47. Kc1 {[%clk 0:00:12]}  Nc3 {[%clk 0:00:04]} 48. b4 {[%clk 0:00:04]}  Kd3 {[%clk 0:00:04]} 0-1


[Site "https://www.chess.com"]

[Event "Titled Tuesday Blitz May 23 Early 2023"]
[White "Djordjevic, Vuk"]
[Black "Belov, Alexei"]
[WhiteFideId "902098"]
[BlackFideId "4128206"]
[WhiteElo "2452"]
[BlackElo "2490"]
[Result "1-0"]
[Round "05"]
[TimeControl "180+2"]
[Date "2023.05.23"]
[WhiteClock "0:00:03"]
[BlackClock "0:00:00"]

1. d4 {[%clk 0:03:00]}  e6 {[%clk 0:02:59]} 2. Nf3 {[%clk 0:03:00]}  d5 {[%clk 0:02:59]} 3. Bf4 {[%clk 0:02:57]}  Bd6 {[%clk 0:02:59]} 4. e3 {[%clk 0:02:57]}  Bxf4 {[%clk 0:02:57]} 5. exf4 {[%clk 0:02:58]}  Ne7 {[%clk 0:02:57]} 6. c3 {[%clk 0:02:57]}  b6 {[%clk 0:02:55]} 7. Bd3 {[%clk 0:02:55]}  h6 {[%clk 0:02:51]} 8. O-O {[%clk 0:02:55]}  O-O {[%clk 0:02:50]} 9. Ne5 {[%clk 0:02:54]}  Ba6 {[%clk 0:02:49]} 10. Bxa6 {[%clk 0:02:51]}  Nxa6 {[%clk 0:02:49]} 11. Qd3 {[%clk 0:02:52]}  Nb8 {[%clk 0:02:48]} 12. Nd2 {[%clk 0:02:52]}  c5 {[%clk 0:02:48]} 13. Rfe1 {[%clk 0:02:49]}  Nbc6 {[%clk 0:02:48]} 14. Ndf3 {[%clk 0:02:33]}  Rc8 {[%clk 0:02:46]} 15. Nxc6 {[%clk 0:02:02]}  Nxc6 {[%clk 0:02:35]} 16. dxc5 {[%clk 0:02:01]}  bxc5 {[%clk 0:02:33]} 17. f5 {[%clk 0:02:01]}  exf5 {[%clk 0:02:10]} 18. Qxf5 {[%clk 0:02:01]}  d4 {[%clk 0:02:10]} 19. Qxc5 {[%clk 0:02:00]}  dxc3 {[%clk 0:01:58]} 20. Qxc3 {[%clk 0:01:58]}  Qb6 {[%clk 0:01:54]} 21. Re4 {[%clk 0:01:55]}  Rfd8 {[%clk 0:01:49]} 22. Rg4 {[%clk 0:01:51]}  g6 {[%clk 0:01:43]} 23. Qa3 {[%clk 0:01:17]}  Nd4 {[%clk 0:01:22]} 24. Nxd4 {[%clk 0:00:31]}  Rxd4 {[%clk 0:01:22]} 25. Rxd4 {[%clk 0:00:31]}  Qxd4 {[%clk 0:01:22]} 26. g3 {[%clk 0:00:31]}  Rc2 {[%clk 0:01:20]} 27. Qf3 {[%clk 0:00:31]}  Qxb2 {[%clk 0:01:11]} 28. Rd1 {[%clk 0:00:14]}  Rc1 {[%clk 0:00:32]} 29. Rxc1 {[%clk 0:00:09]}  Qxc1+ {[%clk 0:00:32]} 30. Kg2 {[%clk 0:00:10]}  Qc5 {[%clk 0:00:28]} 31. a4 {[%clk 0:00:08]}  a5 {[%clk 0:00:28]} 32. Qb7 {[%clk 0:00:08]}  Kg7 {[%clk 0:00:24]} 33. Qb5 {[%clk 0:00:06]}  Qc3 {[%clk 0:00:24]} 34. h3 {[%clk 0:00:05]}  h5 {[%clk 0:00:24]} 35. h4 {[%clk 0:00:04]}  Qd2 {[%clk 0:00:22]} 36. Kf3 {[%clk 0:00:04]}  Qc3+ {[%clk 0:00:22]} 37. Ke2 {[%clk 0:00:05]}  Qc2+ {[%clk 0:00:21]} 38. Ke3 {[%clk 0:00:05]}  Qc3+ {[%clk 0:00:21]} 39. Qd3 {[%clk 0:00:04]}  Qe5+ {[%clk 0:00:18]} 40. Qe4 {[%clk 0:00:04]}  Qc3+ {[%clk 0:00:18]} 41. Ke2 {[%clk 0:00:04]}  Qb2+ {[%clk 0:00:13]} 42. Kf1 {[%clk 0:00:03]}  Qa1+ {[%clk 0:00:12]} 43. Kg2 {[%clk 0:00:04]}  Qc3 {[%clk 0:00:13]} 44. Qf3 {[%clk 0:00:02]}  Qb4 {[%clk 0:00:12]} 45. Qc6 {[%clk 0:00:02]}  Kf8 {[%clk 0:00:08]} 46. Kf3 {[%clk 0:00:02]}  Ke7 {[%clk 0:00:07]} 47. Qe4+ {[%clk 0:00:01]}  Qxe4+ {[%clk 0:00:07]} 48. Kxe4 {[%clk 0:00:02]}  Ke6 {[%clk 0:00:05]} 49. Kd4 {[%clk 0:00:02]}  Kd6 {[%clk 0:00:05]} 50. f3 {[%clk 0:00:02]}  f6 {[%clk 0:00:00]} 51. g4 {[%clk 0:00:03]} 1-0


[Site "https://www.chess.com"]

[Event "Titled Tuesday Blitz May 23 Early 2023"]
[White "Martinez Ramirez, Lennis"]
[Black "Zaitsev, Alexander"]
[WhiteFideId "3509079"]
[BlackFideId "4164490"]
[WhiteElo "2410"]
[BlackElo "2373"]
[Result "1-0"]
[Round "05"]
[TimeControl "180+2"]
[Date "2023.05.23"]
[WhiteClock "0:00:11"]
[BlackClock "0:00:00"]

1. d4 {[%clk 0:02:59]}  Nf6 {[%clk 0:02:56]} 2. c4 {[%clk 0:02:58]}  e6 {[%clk 0:02:57]} 3. Nf3 {[%clk 0:02:57]}  Bb4+ {[%clk 0:02:57]} 4. Bd2 {[%clk 0:02:57]}  c5 {[%clk 0:02:57]} 5. Bxb4 {[%clk 0:02:54]}  cxb4 {[%clk 0:02:58]} 6. g3 {[%clk 0:02:54]}  O-O {[%clk 0:02:55]} 7. Bg2 {[%clk 0:02:54]}  d6 {[%clk 0:02:56]} 8. O-O {[%clk 0:02:54]}  Nc6 {[%clk 0:02:55]} 9. a3 {[%clk 0:02:55]}  bxa3 {[%clk 0:02:53]} 10. Rxa3 {[%clk 0:02:54]}  e5 {[%clk 0:02:52]} 11. e3 {[%clk 0:02:48]}  Bg4 {[%clk 0:02:43]} 12. h3 {[%clk 0:02:48]}  Bh5 {[%clk 0:02:36]} 13. g4 {[%clk 0:02:47]}  Bg6 {[%clk 0:02:37]} 14. Nc3 {[%clk 0:02:46]}  Re8 {[%clk 0:02:21]} 15. d5 {[%clk 0:02:21]}  Nb4 {[%clk 0:02:13]} 16. Ne1 {[%clk 0:01:59]}  Nd7 {[%clk 0:01:39]} 17. e4 {[%clk 0:01:42]}  Nc5 {[%clk 0:01:34]} 18. Nc2 {[%clk 0:01:35]}  a5 {[%clk 0:01:20]} 19. Nxb4 {[%clk 0:01:30]}  axb4 {[%clk 0:01:20]} 20. Rxa8 {[%clk 0:01:31]}  Qxa8 {[%clk 0:01:21]} 21. Nb5 {[%clk 0:01:31]}  Qd8 {[%clk 0:01:10]} 22. Re1 {[%clk 0:01:26]}  Qb6 {[%clk 0:01:06]} 23. Qd2 {[%clk 0:01:24]}  Ra8 {[%clk 0:00:58]} 24. Kh2 {[%clk 0:01:22]}  h6 {[%clk 0:00:52]} 25. f3 {[%clk 0:01:20]}  Ra2 {[%clk 0:00:46]} 26. Rb1 {[%clk 0:01:15]}  b3 {[%clk 0:00:45]} 27. Nc3 {[%clk 0:01:05]}  Qb4 {[%clk 0:00:43]} 28. Bf1 {[%clk 0:01:00]}  Ra6 {[%clk 0:00:40]} 29. Rd1 {[%clk 0:00:53]}  Qb6 {[%clk 0:00:36]} 30. Kg2 {[%clk 0:00:48]}  h5 {[%clk 0:00:35]} 31. Be2 {[%clk 0:00:48]}  h4 {[%clk 0:00:36]} 32. Qg5 {[%clk 0:00:41]}  Ra2 {[%clk 0:00:29]} 33. Rd2 {[%clk 0:00:25]}  Na4 {[%clk 0:00:25]} 34. Nxa4 {[%clk 0:00:24]}  Rxa4 {[%clk 0:00:25]} 35. Qxh4 {[%clk 0:00:25]}  Qe3 {[%clk 0:00:25]} 36. Qd8+ {[%clk 0:00:22]}  Kh7 {[%clk 0:00:25]} 37. Qh4+ {[%clk 0:00:22]}  Kg8 {[%clk 0:00:25]} 38. Qe1 {[%clk 0:00:23]}  Ra2 {[%clk 0:00:22]} 39. Rd3 {[%clk 0:00:20]}  Qc5 {[%clk 0:00:17]} 40. Rxb3 {[%clk 0:00:19]}  f6 {[%clk 0:00:15]} 41. Qf2 {[%clk 0:00:18]}  Qc8 {[%clk 0:00:07]} 42. Qb6 {[%clk 0:00:18]}  Kh7 {[%clk 0:00:03]} 43. Qxd6 {[%clk 0:00:18]}  Qa8 {[%clk 0:00:03]} 44. Qb4 {[%clk 0:00:17]}  Ra1 {[%clk 0:00:03]} 45. Qb6 {[%clk 0:00:17]}  Qa4 {[%clk 0:00:02]} 46. Qb4 {[%clk 0:00:12]}  Qa7 {[%clk 0:00:02]} 47. c5 {[%clk 0:00:12]}  Rc1 {[%clk 0:00:00]} 48. Rc3 {[%clk 0:00:11]} 1-0


[Site "https://www.chess.com"]

[Event "Titled Tuesday Blitz May 23 Early 2023"]
[White "Camilla_Lee"]
[Black "Flynn, Jacob"]
[BlackFideId "2509393"]
[WhiteElo "2682"]
[BlackElo "2053"]
[Result "0-1"]
[Round "05"]
[TimeControl "180+2"]
[Date "2023.05.23"]
[WhiteClock "0:00:01"]
[BlackClock "0:00:06"]

1. e4 {[%clk 0:03:00]}  e5 {[%clk 0:02:59]} 2. Nf3 {[%clk 0:03:00]}  Nc6 {[%clk 0:02:59]} 3. Nc3 {[%clk 0:02:59]}  Nf6 {[%clk 0:02:59]} 4. d4 {[%clk 0:02:59]}  exd4 {[%clk 0:03:00]} 5. Nd5 {[%clk 0:02:58]}  Nb4 {[%clk 0:03:00]} 6. Bc4 {[%clk 0:02:58]}  Nbxd5 {[%clk 0:02:58]} 7. exd5 {[%clk 0:02:58]}  Bc5 {[%clk 0:02:59]} 8. O-O {[%clk 0:02:51]}  O-O {[%clk 0:02:57]} 9. Bg5 {[%clk 0:02:51]}  h6 {[%clk 0:02:55]} 10. Bh4 {[%clk 0:02:50]}  d6 {[%clk 0:02:52]} 11. Nxd4 {[%clk 0:02:49]}  g5 {[%clk 0:02:50]} 12. Bg3 {[%clk 0:02:47]}  Ne4 {[%clk 0:02:48]} 13. Re1 {[%clk 0:02:29]}  Nxg3 {[%clk 0:02:45]} 14. hxg3 {[%clk 0:02:28]}  Qf6 {[%clk 0:02:46]} 15. Nb3 {[%clk 0:02:21]}  Bxf2+ {[%clk 0:02:41]} 16. Kh2 {[%clk 0:02:22]}  Bxe1 {[%clk 0:02:41]} 17. Qxe1 {[%clk 0:02:23]}  Bd7 {[%clk 0:02:38]} 18. Qb4 {[%clk 0:02:19]}  b6 {[%clk 0:02:38]} 19. Rf1 {[%clk 0:02:19]}  Qg7 {[%clk 0:02:25]} 20. Bd3 {[%clk 0:02:19]}  Rae8 {[%clk 0:02:15]} 21. Qc4 {[%clk 0:02:11]}  Rc8 {[%clk 0:02:07]} 22. c3 {[%clk 0:02:10]}  Rfe8 {[%clk 0:02:03]} 23. Nd4 {[%clk 0:02:09]}  Re7 {[%clk 0:01:59]} 24. Bf5 {[%clk 0:02:04]}  Qe5 {[%clk 0:01:51]} 25. Bxd7 {[%clk 0:00:50]}  Rxd7 {[%clk 0:01:51]} 26. Nc6 {[%clk 0:00:50]}  Qe3 {[%clk 0:01:44]} 27. Qg4 {[%clk 0:00:49]}  Qe8 {[%clk 0:01:38]} 28. Qf5 {[%clk 0:00:41]}  Ra8 {[%clk 0:01:27]} 29. Qf6 {[%clk 0:00:36]}  Kh7 {[%clk 0:01:24]} 30. g4 {[%clk 0:00:33]}  a5 {[%clk 0:01:19]} 31. Rf3 {[%clk 0:00:33]}  Rdd8 {[%clk 0:00:49]} 32. Nxd8 {[%clk 0:00:30]}  Rxd8 {[%clk 0:00:47]} 33. Qxf7+ {[%clk 0:00:25]}  Qxf7 {[%clk 0:00:48]} 34. Rxf7+ {[%clk 0:00:25]}  Kg6 {[%clk 0:00:49]} 35. Rxc7 {[%clk 0:00:25]}  Kf6 {[%clk 0:00:45]} 36. Rb7 {[%clk 0:00:19]}  Ke5 {[%clk 0:00:45]} 37. c4 {[%clk 0:00:19]}  Kd4 {[%clk 0:00:45]} 38. b3 {[%clk 0:00:20]}  Kc5 {[%clk 0:00:39]} 39. Rc7+ {[%clk 0:00:17]}  Kb4 {[%clk 0:00:36]} 40. Rc6 {[%clk 0:00:18]}  Ka3 {[%clk 0:00:35]} 41. Rxb6 {[%clk 0:00:18]}  Kxa2 {[%clk 0:00:35]} 42. Kg3 {[%clk 0:00:16]}  Kb2 {[%clk 0:00:34]} 43. Kf3 {[%clk 0:00:11]}  Kc3 {[%clk 0:00:33]} 44. Ke4 {[%clk 0:00:11]}  a4 {[%clk 0:00:21]} 45. bxa4 {[%clk 0:00:09]}  Kxc4 {[%clk 0:00:22]} 46. Rb5 {[%clk 0:00:06]}  Ra8 {[%clk 0:00:19]} 47. Kf5 {[%clk 0:00:05]}  Rxa4 {[%clk 0:00:18]} 48. Rb1 {[%clk 0:00:05]}  Kxd5 {[%clk 0:00:19]} 49. Rd1+ {[%clk 0:00:06]}  Kc5 {[%clk 0:00:18]} 50. Rh1 {[%clk 0:00:06]}  Rf4+ {[%clk 0:00:18]} 51. Kg6 {[%clk 0:00:07]}  Rxg4 {[%clk 0:00:18]} 52. Rg1 {[%clk 0:00:06]}  Rh4 {[%clk 0:00:12]} 53. g3 {[%clk 0:00:06]}  Rh2 {[%clk 0:00:12]} 54. Rc1+ {[%clk 0:00:05]}  Kd5 {[%clk 0:00:12]} 55. Rd1+ {[%clk 0:00:05]}  Ke5 {[%clk 0:00:12]} 56. Re1+ {[%clk 0:00:06]}  Kd5 {[%clk 0:00:13]} 57. Rd1+ {[%clk 0:00:06]}  Ke6 {[%clk 0:00:13]} 58. Re1+ {[%clk 0:00:06]}  Kd7 {[%clk 0:00:12]} 59. Rd1 {[%clk 0:00:06]}  Rh3 {[%clk 0:00:11]} 60. g4 {[%clk 0:00:05]}  Rh4 {[%clk 0:00:11]} 61. Rd2 {[%clk 0:00:04]}  Rxg4 {[%clk 0:00:10]} 62. Kxh6 {[%clk 0:00:05]}  Rg1 {[%clk 0:00:10]} 63. Kh5 {[%clk 0:00:05]}  Ke6 {[%clk 0:00:10]} 64. Re2+ {[%clk 0:00:05]}  Kd5 {[%clk 0:00:10]} 65. Rd2+ {[%clk 0:00:06]}  Ke5 {[%clk 0:00:11]} 66. Re2+ {[%clk 0:00:06]}  Kf5 {[%clk 0:00:11]} 67. Rf2+ {[%clk 0:00:06]}  Ke4 {[%clk 0:00:09]} 68. Rf8 {[%clk 0:00:05]}  d5 {[%clk 0:00:09]} 69. Re8+ {[%clk 0:00:06]}  Kd3 {[%clk 0:00:09]} 70. Rd8 {[%clk 0:00:05]}  d4 {[%clk 0:00:09]} 71. Kg6 {[%clk 0:00:05]}  Kc3 {[%clk 0:00:09]} 72. Kf5 {[%clk 0:00:06]}  d3 {[%clk 0:00:09]} 73. Rc8+ {[%clk 0:00:06]}  Kd2 {[%clk 0:00:09]} 74. Rd8 {[%clk 0:00:04]}  Ke2 {[%clk 0:00:05]} 75. Re8+ {[%clk 0:00:04]}  Kd1 {[%clk 0:00:05]} 76. Ke4 {[%clk 0:00:02]}  Re1+ {[%clk 0:00:05]} 77. Kxd3 {[%clk 0:00:01]}  Rxe8 {[%clk 0:00:06]} 0-1


[Site "https://www.chess.com"]